fUST/lending_fUST_20250920
["ID","MTS","AMOUNT","RATE_DAILY","PERIOD"]
[386438385,1758298249718,-7277.52091122,0.0002444,2]
[386438387,1758298249727,-933.34886834,0.0002444,2]
[386438389,1758298249736,-3729.66207787,0.0002444,2]
[386438391,1758298249745,-151.0,0.0002444,7]
[386438393,1758298249754,-151.428437,0.0002444,7]
[386438395,1758298249764,-151.0,0.0002444,7]
[386438397,1758298249774,-704.56034856,0.0002444,2]
[386438399,1758298249784,-762.42,0.0002444,2]
[386438401,1758298249793,-981.14108139,0.0002444,2]
[386438403,1758298249803,-534.07796325,0.0002444,2]
[386438405,1758298249811,-2766.93,0.0002444,2]
[386438407,1758298249821,-151.0,0.00024626,4]
[386438409,1758298249830,-500.0,0.00024628,2]
[386438411,1758298249840,-10799.09,0.00024639,2]
[386438413,1758298249850,-534.23,0.00024639,2]
[386438415,1758298249859,-1347.62,0.00024639,2]
[386438417,1758298249868,-480.0,0.00024639,2]
[386438419,1758298249878,-380.0,0.00024658,2]
[386438421,1758298249887,-1000.0,0.0002466,2]
[386438423,1758298249897,-533.26,0.00024666,2]
[386438425,1758298249906,-646.93,0.00024667,2]
[386438427,1758298249916,-1361.13,0.00024667,2]
[386438428,1758298249927,-480.0,0.00024667,2]
[386438430,1758298249936,-599.3,0.00024667,2]
[386438432,1758298249946,-1468.19,0.00024667,2]
[386438434,1758298249955,-480.0,0.0002467,2]
[386438436,1758298249964,-495.93,0.0002467,2]
[386438438,1758298249974,-546.66,0.0002467,2]
[386438440,1758298249984,-480.0,0.0002467,2]
[386438442,1758298249995,-480.0,0.0002467,2]
[386438444,1758298250005,-535.06,0.0002467,2]
[386438446,1758298250015,-439.22485853,0.0002467,2]
[386438448,1758298250024,-480.0,0.0002467,2]
[386438450,1758298250034,-480.0,0.0002467,2]
[386438451,1758298250043,-480.0,0.0002467,2]
[386438452,1758298250053,-1070.64,0.0002467,2]
[386438453,1758298250062,-502.6,0.0002467,2]
[386438454,1758298250071,-1049.83,0.0002467,2]
[386438455,1758298250080,-1374.77,0.00024671,2]
[386438456,1758298250090,-2996.7,0.00024671,2]
[386438457,1758298250099,-480.0,0.00024671,2]
[386438458,1758298250109,-2496.35,0.00024672,2]
[386438459,1758298250119,-977.9,0.00024672,2]
[386438460,1758298250128,-480.0,0.00024672,2]
[386438461,1758298250138,-553.87,0.00024672,2]
[386438462,1758298250148,-480.0,0.00024672,2]
[386438463,1758298250158,-688.05,0.00024675,2]
[386438464,1758298250168,-515.89,0.00024675,2]
[386438465,1758298250178,-735.66,0.00024675,2]
[386438466,1758298250187,-480.0,0.00024675,2]
[386438467,1758298250197,-480.0,0.00024677,2]
[386438468,1758298250207,-480.0,0.00024677,2]
[386438469,1758298250217,-14589.44003254,0.000247,2]
[386438470,1758298250227,-451.42914126,0.00024708,2]
[386438471,1758298250236,-231.65900691,0.00024712,2]
[386438472,1758298250245,-762.42,0.00024714,2]
[386438473,1758298250255,-2766.93,0.00024714,2]
[386438474,1758298250266,-578.0,0.00024726,2]
[386438475,1758298250276,-151.0,0.000248,7]
[386438476,1758298250286,-151.0,0.000248,7]
[386438477,1758298250296,-151.0,0.000248,7]
[386438478,1758298250307,-151.0,0.000248,7]
[386438479,1758298250316,-151.0,0.000248,7]
[386438480,1758298250326,-151.0,0.000248,7]
[386438481,1758298250335,-295.889814,0.000248,7]
[386438482,1758298250346,-152.959036,0.000248,7]
[386438483,1758298250355,-151.0,0.000248,7]
[386438484,1758298250365,-151.0,0.000248,7]
[386438485,1758298250374,-151.0,0.000248,7]
[386438486,1758298250383,-151.0,0.000248,7]
[386438487,1758298250393,-151.0,0.000248,7]
[386438488,1758298250402,-151.0,0.000248,7]
[386438489,1758298250411,-151.0,0.000248,7]
[386438490,1758298250421,-151.0,0.000248,7]
[386438491,1758298250430,-151.0,0.000248,7]
[386438492,1758298250440,-151.0,0.000248,7]
[386438493,1758298250449,-151.0,0.000248,7]
[386438494,1758298250458,-151.0,0.000248,7]
[386438495,1758298250468,-151.0,0.000248,7]
[386438496,1758298250477,-151.0,0.000248,7]
[386438497,1758298250489,-151.0,0.000248,7]
[386438498,1758298250499,-6007.30167729,0.000248,2]
[386438499,1758298250510,-151.0,0.000248,7]
[386438500,1758298250520,-151.0,0.000248,7]
[386438501,1758298250530,-151.0,0.000248,7]
[386438502,1758298250539,-151.0,0.000248,7]
[386438503,1758298250549,-160.920863,0.000248,7]
[386438504,1758298250558,-151.0,0.000248,7]
[386438505,1758298250567,-151.0,0.000248,7]
[386438506,1758298250577,-151.0,0.000248,7]
[386438507,1758298250586,-151.0,0.000248,7]
[386438508,1758298250597,-219.962288,0.000248,7]
[386438509,1758298250607,-295.318742,0.000248,7]
[386438510,1758298250616,-219.962288,0.000248,7]
[386438511,1758298250627,-295.318742,0.000248,7]
[386438512,1758298250636,-219.962288,0.000248,7]
[386438513,1758298250646,-295.318742,0.000248,7]
[386438514,1758298250655,-219.962288,0.000248,7]
[386438515,1758298250665,-295.318742,0.000248,7]
[386438516,1758298250675,-151.0,0.000248,7]
[386438517,1758298250685,-279.603439,0.000248,7]
[386438518,1758298250694,-151.0,0.000248,7]
[386438519,1758298250703,-1217.208672,0.000248,7]
[386438520,1758298250713,-1217.208672,0.000248,7]
[386438521,1758298250723,-151.0,0.000248,7]
[386438522,1758298250732,-1217.208672,0.000248,7]
[386438523,1758298250742,-1217.208672,0.000248,7]
[386438524,1758298250751,-153.29791,0.000248,7]
[386438525,1758298250760,-250.0,0.0002484,2]
[386438526,1758298250771,-151.740171,0.00024849,20]
[386438527,1758298250781,-578.0,0.00024854,2]
[386438528,1758298250790,-257.0,0.00024892,2]
[386438529,1758298250800,-151.0,0.000249,7]
[386438530,1758298250809,-151.0,0.000249,7]
[386438531,1758298250819,-152.815798,0.000249,7]
[386438532,1758298250828,-151.513949,0.000249,7]
[386438533,1758298250838,-151.0,0.000249,7]
[386438534,1758298250847,-151.0,0.000249,7]
[386438535,1758298250857,-151.0,0.000249,7]
[386438536,1758298250866,-151.0,0.000249,7]
[386438537,1758298250876,-151.0,0.000249,7]
[386438538,1758298250885,-151.0,0.000249,7]
[386438539,1758298250895,-151.0,0.000249,7]
[386438540,1758298250906,-151.0,0.000249,7]
[386438542,1758298250917,-151.0,0.000249,7]
[386438543,1758298250927,-151.0,0.000249,7]
[386438544,1758298250937,-151.625973,0.000249,7]
[386438545,1758298250946,-271.281318,0.000249,7]
[386438546,1758298250956,-151.0,0.000249,7]
[386438547,1758298250966,-151.0,0.000249,7]
[386438549,1758298250975,-151.0,0.000249,7]
[386438551,1758298250985,-151.0,0.000249,7]
[386438553,1758298250994,-151.0,0.000249,7]
[386438555,1758298251004,-151.0,0.000249,7]
[386438557,1758298251013,-151.0,0.000249,7]
[386438558,1758298251024,-151.0,0.000249,7]
[386438561,1758298251033,-151.0,0.000249,7]
[386438563,1758298251043,-154.411227,0.000249,7]
[386438564,1758298251052,-151.0,0.000249,7]
[386438566,1758298251062,-332.518182,0.000249,7]
[386438568,1758298251072,-332.518182,0.000249,7]
[386438570,1758298251081,-332.518182,0.000249,7]
[386438572,1758298251090,-332.518182,0.000249,7]
[386438574,1758298251100,-151.0,0.000249,7]
[386438576,1758298251109,-151.0,0.000249,7]
[386438578,1758298251119,-151.0,0.000249,7]
[386438580,1758298251128,-152.240757,0.000249,7]
[386438582,1758298251137,-151.0,0.000249,7]
[386438584,1758298251147,-151.0,0.000249,7]
[386438586,1758298251156,-151.0,0.000249,7]
[386438588,1758298251165,-151.0,0.000249,7]
[386438590,1758298251175,-151.0,0.000249,7]
[386438592,1758298251185,-151.0,0.000249,7]
[386438594,1758298251194,-151.0,0.000249,7]
[386438596,1758298251204,-151.0,0.000249,7]
[386438598,1758298251213,-277.164562,0.000249,7]
[386438600,1758298251222,-151.0,0.000249,7]
[386438602,1758298251231,-151.0,0.000249,7]
[386438604,1758298251240,-151.0,0.000249,7]
[386438606,1758298251250,-151.0,0.000249,7]
[386438608,1758298251258,-151.0,0.000249,7]
[386438610,1758298251272,-151.0,0.000249,7]
[386438612,1758298251282,-151.0,0.000249,7]
[386438614,1758298251291,-151.0,0.000249,7]
[386438616,1758298251301,-151.0,0.000249,7]
[386438618,1758298251311,-151.0,0.000249,7]
[386438620,1758298251320,-151.0,0.000249,7]
[386438622,1758298251329,-224.504396,0.000249,7]
[386438624,1758298251340,-151.0,0.000249,7]
[386438626,1758298251350,-151.0,0.000249,7]
[386438628,1758298251359,-151.0,0.000249,7]
[386438630,1758298251368,-151.0,0.000249,7]
[386438632,1758298251377,-151.0,0.000249,7]
[386438634,1758298251387,-151.0,0.000249,7]
[386438636,1758298251396,-165.021901,0.000249,7]
[386438638,1758298251405,-1000.0,0.000249,2]
[386438640,1758298251415,-1000.0,0.000249,2]
[386438642,1758298251425,-1000.0,0.000249,2]
[386438644,1758298251434,-1000.0,0.000249,2]
[386438646,1758298251443,-228.774058,0.000249,2]
[386438648,1758298251453,-151.0,0.000249,7]
[386438650,1758298251463,-151.0,0.000249,7]
[386438652,1758298251472,-151.0,0.000249,7]
[386438654,1758298251481,-487767.543893,0.000249,2]
[386438656,1758298251490,-219.962288,0.000249,7]
[386438658,1758298251502,-219.962288,0.000249,7]
[386438659,1758298251512,-219.962288,0.000249,7]
[386438661,1758298251522,-219.962288,0.000249,7]
[386438663,1758298251532,-521.050658,0.000249,7]
[386438666,1758298251543,-521.050658,0.000249,7]
[386438667,1758298251552,-521.050658,0.000249,7]
[386438669,1758298251561,-521.050658,0.000249,7]
[386438671,1758298251571,-151.0,0.000249,7]
[386438673,1758298251580,-151.0,0.000249,7]
[386438675,1758298251590,-151.0,0.000249,7]
[386438677,1758298251600,-151.0,0.000249,7]
[386438679,1758298251609,-151.0,0.000249,7]
[386438681,1758298251619,-209.044344,0.000249,7]
[386438683,1758298251628,-151.0,0.000249,7]
[386438685,1758298251638,-151.0,0.000249,7]
[386438687,1758298251647,-204.161602,0.000249,7]
[386438689,1758298251656,-204.161602,0.000249,7]
[386438691,1758298251666,-151.0,0.000249,7]
[386438692,1758298251675,-204.161602,0.000249,7]
[386438693,1758298251684,-151.0,0.000249,7]
[386438695,1758298251694,-151.0,0.000249,7]
[386438696,1758298251703,-204.161602,0.000249,7]
[386438697,1758298251713,-10799.09,0.00024913,2]
[386438698,1758298251722,-534.23,0.00024913,2]
[386438699,1758298251731,-1347.62,0.00024913,2]
[386438700,1758298251741,-700.0,0.00024923,2]
[386438702,1758298251751,-578.0,0.00024926,2]
[386438703,1758298251760,-257.0,0.00024926,2]
[386438704,1758298251770,-578.0,0.00024933,2]
[386438705,1758298251780,-533.26,0.0002494,2]
[386438706,1758298251789,-646.93,0.00024941,2]
[386438707,1758298251799,-1361.13,0.00024941,2]
[386438709,1758298251808,-480.0,0.00024941,2]
[386438711,1758298251818,-599.3,0.00024941,2]
[386438713,1758298251828,-1468.19,0.00024941,2]
[386438714,1758298251838,-203.41791899,0.00024944,2]
[386438715,1758298251850,-495.93,0.00024944,2]
[386438717,1758298251860,-546.66,0.00024944,2]
[386438718,1758298251869,-480.0,0.00024944,2]
[386438719,1758298251878,-480.0,0.00024944,2]
[386438720,1758298251887,-535.06,0.00024944,2]
[386438721,1758298251898,-480.0,0.00024944,2]
[386438722,1758298251908,-480.0,0.00024944,2]
[386438723,1758298251918,-480.0,0.00024944,2]
[386438724,1758298251927,-1070.64,0.00024944,2]
[386438725,1758298251937,-502.6,0.00024944,2]
[386438726,1758298251946,-1049.83,0.00024944,2]
[386438727,1758298251955,-1374.77,0.00024945,2]
[386438728,1758298251965,-2996.7,0.00024945,2]
[386438729,1758298251976,-480.0,0.00024945,2]
[386438730,1758298251985,-2496.35,0.00024946,2]
[386438731,1758298251994,-977.9,0.00024946,2]
[386438732,1758298252004,-480.0,0.00024946,2]
[386438733,1758298252013,-553.87,0.00024946,2]
[386438734,1758298252026,-480.0,0.00024946,2]
[386438735,1758298252036,-688.05,0.00024949,2]
[386438736,1758298252046,-515.89,0.00024949,2]
[386438737,1758298252056,-735.66,0.00024949,2]
[386438738,1758298252066,-480.0,0.00024949,2]
[386438739,1758298252075,-480.0,0.00024951,2]
[386438740,1758298252084,-480.0,0.00024951,2]
[386438741,1758298252094,-460.0,0.0002496,2]
[386438742,1758298252103,-500.0,0.0002496,2]
[386438743,1758298252113,-587.0,0.0002497,2]
[386438744,1758298252122,-151.0,0.00024974,4]
[386438745,1758298252131,-257.0,0.00024984,2]
[386438746,1758298252141,-762.42,0.00024988,2]
[386438747,1758298252152,-2766.93,0.00024988,2]
[386438748,1758298252161,-578.0,0.00024993,2]
[386438749,1758298252171,-10230.48890272,0.00025,2]
[386438750,1758298252180,-30695.52784836,0.00025,2]
[386438751,1758298252189,-209.20111535,0.00025,2]
[386438752,1758298252199,-9414.84771337,0.00025,2]
[386438753,1758298252208,-150.0,0.00025,2]
[386438754,1758298252217,-1000.0,0.00025,5]
[386438755,1758298252227,-93656.79715807,0.00025,10]
[386438756,1758298252237,-151.740171,0.00025077,4]
[386438757,1758298252246,-257.0,0.00025086,2]
[386438758,1758298252256,-257.0,0.000251,2]
[386438759,1758298252268,-578.0,0.000251,2]
[386438760,1758298252278,-257.0,0.00025103,2]
[386438761,1758298252287,-578.0,0.00025112,2]
[386438762,1758298252296,-171.0,0.00025112,3]
[386438763,1758298252306,-166.0,0.00025112,3]
[386438764,1758298252317,-166.0,0.00025112,3]
[386438765,1758298252327,-578.0,0.00025117,2]
[386438766,1758298252337,-257.0,0.00025159,2]
[386438767,1758298252346,-10799.09,0.00025187,2]
[386438768,1758298252356,-534.23,0.00025187,2]
[386438769,1758298252366,-1347.62,0.00025187,2]
[386438770,1758298252376,-4897.25,0.000252,7]
[386438771,1758298252386,-2351.0,0.00025211,2]
[386438772,1758298252395,-533.26,0.00025213,2]
[386438773,1758298252404,-646.93,0.00025215,2]
[386438774,1758298252413,-1361.13,0.00025215,2]
[386438775,1758298252423,-480.0,0.00025215,2]
[386438776,1758298252432,-599.3,0.00025215,2]
[386438777,1758298252441,-1468.19,0.00025215,2]
[386438778,1758298252451,-495.93,0.00025218,2]
[386438779,1758298252461,-546.66,0.00025218,2]
[386438780,1758298252470,-536.62,0.00025218,2]
[386438781,1758298252479,-480.0,0.00025218,2]
[386438782,1758298252489,-535.06,0.00025218,2]
[386438783,1758298252499,-480.0,0.00025218,2]
[386438784,1758298252508,-480.0,0.00025218,2]
[386438785,1758298252518,-1070.64,0.00025218,2]
[386438786,1758298252527,-502.6,0.00025218,2]
[386438787,1758298252537,-1374.77,0.00025219,2]
[386438788,1758298252547,-2996.7,0.00025219,2]
[386438789,1758298252556,-480.0,0.00025219,2]
[386438790,1758298252565,-2496.35,0.0002522,2]
[386438791,1758298252575,-977.9,0.0002522,2]
[386438792,1758298252588,-480.0,0.0002522,2]
[386438793,1758298252597,-553.87,0.0002522,2]
[386438794,1758298252607,-688.05,0.00025223,2]
[386438795,1758298252616,-515.89,0.00025223,2]
[386438796,1758298252625,-735.66,0.00025223,2]
[386438797,1758298252636,-276.0,0.00025223,2]
[386438798,1758298252645,-480.0,0.00025225,2]
[386438799,1758298252654,-480.0,0.00025225,2]
[386438800,1758298252663,-257.0,0.0002523,2]
[386438801,1758298252673,-762.42,0.00025262,2]
[386438802,1758298252683,-2766.93,0.00025262,2]
[386438803,1758298252693,-257.0,0.00025311,2]
[386438804,1758298252702,-151.0,0.00025323,5]
[386438805,1758298252832,-257.0,0.00025408,2]
[386438806,1758298252843,-10799.09,0.00025461,2]
[386438807,1758298252853,-534.23,0.00025461,2]
[386438808,1758298252863,-1347.62,0.00025461,2]
[386438809,1758298252872,-900.0,0.00025469,3]
[386438810,1758298252882,-533.26,0.00025487,2]
[386438811,1758298252891,-646.93,0.00025489,2]
[386438812,1758298252902,-1361.13,0.00025489,2]
[386438813,1758298252911,-480.0,0.00025489,2]
[386438814,1758298252922,-599.3,0.00025489,2]
[386438815,1758298252932,-1468.19,0.00025489,2]
[386438816,1758298252941,-495.93,0.00025492,2]
[386438817,1758298252951,-546.66,0.00025492,2]
[386438818,1758298252961,-480.0,0.00025492,2]
[386438819,1758298252970,-535.06,0.00025492,2]
[386438820,1758298252979,-480.0,0.00025492,2]
[386438821,1758298252989,-480.0,0.00025492,2]
[386438822,1758298252999,-1070.64,0.00025492,2]
[386438823,1758298253008,-502.6,0.00025492,2]
[386438824,1758298253017,-1374.77,0.00025493,2]
[386438825,1758298253027,-2996.7,0.00025493,2]
[386438826,1758298253036,-480.0,0.00025493,2]
[386438827,1758298253046,-2496.35,0.00025494,2]
[386438828,1758298253055,-977.9,0.00025494,2]
[386438829,1758298253064,-480.0,0.00025494,2]
[386438830,1758298253074,-553.87,0.00025494,2]
[386438831,1758298253083,-688.05,0.00025497,2]
[386438832,1758298253091,-515.89,0.00025497,2]
[386438833,1758298253100,-735.66,0.00025497,2]
[386438834,1758298253109,-480.0,0.00025499,2]
[386438835,1758298253119,-480.0,0.00025499,2]
[386438836,1758298253128,-560.0,0.00025508,2]
[386438837,1758298253137,-257.0,0.00025509,2]
[386438838,1758298253146,-762.42,0.00025536,2]
[386438839,1758298253156,-2766.93,0.00025536,2]
[386438840,1758298253166,-151.0,0.00025671,5]
[386438841,1758298253176,-151.740171,0.00025714,14]
[386438842,1758298253186,-10799.09,0.00025735,2]
[386438843,1758298253195,-534.23,0.00025735,2]
[386438844,1758298253204,-1347.62,0.00025735,2]
[386438845,1758298253214,-533.26,0.00025761,2]
[386438846,1758298253223,-646.93,0.00025763,2]
[386438847,1758298253233,-1361.13,0.00025763,2]
[386438848,1758298253242,-480.0,0.00025763,2]
[386438849,1758298253251,-599.3,0.00025763,2]
[386438850,1758298253261,-1468.19,0.00025763,2]
[386438851,1758298253275,-495.93,0.00025766,2]
[386438852,1758298253284,-546.66,0.00025766,2]
[386438853,1758298253294,-480.0,0.00025766,2]
[386438854,1758298253303,-535.06,0.00025766,2]
[386438855,1758298253314,-347.79762031,0.00025766,2]
[386438856,1758298253323,-480.0,0.00025766,2]
[386438857,1758298253337,-1070.64,0.00025766,2]
[386438858,1758298253348,-502.6,0.00025766,2]
[386438859,1758298253359,-1374.77,0.00025767,2]
[386438860,1758298253369,-2996.7,0.00025767,2]
[386438861,1758298253378,-480.0,0.00025767,2]
[386438862,1758298253387,-2496.35,0.00025768,2]
[386438863,1758298253396,-977.9,0.00025768,2]
[386438864,1758298253407,-480.0,0.00025768,2]
[386438865,1758298253416,-553.87,0.00025768,2]
[386438866,1758298253425,-688.05,0.00025771,2]
[386438867,1758298253435,-515.89,0.00025771,2]
[386438868,1758298253444,-735.66,0.00025771,2]
[386438869,1758298253454,-480.0,0.00025773,2]
[386438870,1758298253464,-480.0,0.00025773,2]
[386438871,1758298253473,-5000.0,0.00025808,30]
[386438872,1758298253483,-5000.0,0.00025808,30]
[386438873,1758298253492,-5000.0,0.00025808,30]
[386438874,1758298253502,-5000.0,0.00025808,30]
[386438875,1758298253511,-5000.0,0.00025808,30]
[386438876,1758298253521,-5000.0,0.00025808,30]
[386438877,1758298253531,-173.379165,0.00025808,7]
[386438878,1758298253541,-155.247672,0.00025808,7]
[386438879,1758298253550,-151.0,0.00025808,7]
[386438880,1758298253559,-762.42,0.0002581,2]
[386438881,1758298253569,-2766.93,0.0002581,2]
[386438882,1758298253578,-151.0,0.0002589,7]
[386438883,1758298253588,-245.997743,0.0002589,7]
[386438884,1758298253598,-219.962288,0.0002589,7]
[386438885,1758298253608,-219.962288,0.0002589,7]
[386438886,1758298253618,-219.962288,0.0002589,7]
[386438887,1758298253627,-219.962288,0.0002589,7]
[386438888,1758298253637,-2158.0,0.00025891,2]
[386438889,1758298253646,-634.0,0.00025891,2]
[386438890,1758298253655,-410.0,0.00025891,2]
[386438891,1758298253665,-410.0,0.00025891,2]
[386438892,1758298253674,-151.0,0.00025954,2]
[386438893,1758298253684,-151.0,0.00025954,2]
[386438894,1758298253693,-151.0,0.00025954,2]
[386438895,1758298253704,-500.0,0.00025954,2]
[386438896,1758298253714,-151.0,0.00025954,2]
[386438897,1758298253723,-151.0,0.00025954,2]
[386438898,1758298253733,-151.0,0.00025954,2]
[386438899,1758298253742,-500.0,0.00025954,2]
[386438900,1758298253752,-151.000001,0.00025954,2]
[386438901,1758298253762,-154.69557485,0.00025954,2]
[386438902,1758298253772,-157.30370193,0.00025954,2]
[386438903,1758298253781,-151.46074582,0.00025954,2]
[386438904,1758298253790,-151.0,0.00025954,2]
[386438905,1758298253799,-151.0,0.00025954,2]
[386438906,1758298253809,-151.0,0.00025954,2]
[386438907,1758298253819,-151.0,0.00025954,2]
[386438908,1758298253828,-151.0,0.00025954,2]
[386438909,1758298253838,-151.0,0.00025954,2]
[386438910,1758298253847,-2000.0,0.00026,2]
[386438911,1758298253856,-1000.0,0.00026,2]
[386438912,1758298253865,-10799.09,0.00026009,2]
[386438913,1758298253875,-534.23,0.00026009,2]
[386438914,1758298253886,-1347.62,0.00026009,2]
[386438915,1758298253895,-151.0,0.00026009,7]
[386438916,1758298253905,-151.0,0.00026009,7]
[386438917,1758298253913,-151.0,0.00026009,7]
[386438918,1758298253922,-151.0,0.00026009,7]
[386438919,1758298253931,-151.0,0.00026009,7]
[386438920,1758298253941,-295.318742,0.00026009,7]
[386438921,1758298253951,-295.318742,0.00026009,7]
[386438922,1758298253961,-295.318742,0.00026009,7]
[386438923,1758298253971,-295.318742,0.00026009,7]
[386438924,1758298253980,-160.212778,0.00026009,7]
[386438925,1758298253991,-1217.208672,0.00026009,7]
[386438926,1758298254001,-1217.208672,0.00026009,7]
[386438927,1758298254011,-151.0,0.00026009,7]
[386438928,1758298254021,-1217.208672,0.00026009,7]
[386438929,1758298254031,-1217.208672,0.00026009,7]
[386438930,1758298254040,-700.0,0.00026019,2]
[386438931,1758298254050,-151.0,0.00026019,5]
[386438932,1758298254060,-152.325147,0.00026021,7]
[386438933,1758298254070,-151.0,0.00026021,7]
[386438934,1758298254079,-151.0,0.00026021,7]
[386438935,1758298254089,-151.0,0.00026021,7]
[386438936,1758298254099,-151.0,0.00026021,7]
[386438937,1758298254109,-151.0,0.00026021,7]
[386438938,1758298254119,-151.0,0.00026021,7]
[386438939,1758298254129,-200.0,0.00026027,30]
[386438940,1758298254139,-200.0,0.00026027,30]
[386438941,1758298254148,-533.26,0.00026035,2]
[386438942,1758298254159,-646.93,0.00026036,2]
[386438943,1758298254170,-1361.13,0.00026036,2]
[386438944,1758298254181,-480.0,0.00026036,2]
[386438945,1758298254190,-599.3,0.00026036,2]
[386438946,1758298254200,-1468.19,0.00026036,2]
[386438947,1758298254210,-209.0,0.0002604,2]
[386438948,1758298254219,-495.93,0.0002604,2]
[386438949,1758298254228,-546.66,0.0002604,2]
[386438950,1758298254238,-434.64,0.0002604,2]
[386438951,1758298254248,-535.06,0.0002604,2]
[386438952,1758298254258,-480.0,0.0002604,2]
[386438953,1758298254273,-1070.64,0.0002604,2]
[386438954,1758298254283,-502.6,0.0002604,2]
[386438955,1758298254292,-1374.77,0.00026041,2]
[386438956,1758298254302,-2996.7,0.00026041,2]
[386438957,1758298254313,-480.0,0.00026041,2]
[386438958,1758298254323,-2496.35,0.00026042,2]
[386438959,1758298254332,-977.9,0.00026042,2]
[386438960,1758298254344,-480.0,0.00026042,2]
[386438961,1758298254355,-553.87,0.00026042,2]
[386438962,1758298254364,-688.05,0.00026045,2]
[386438963,1758298254373,-515.89,0.00026045,2]
[386438964,1758298254383,-151.0,0.00026045,7]
[386438965,1758298254392,-151.0,0.00026045,7]
[386438966,1758298254402,-151.0,0.00026045,7]
[386438967,1758298254411,-151.0,0.00026045,7]
[386438968,1758298254421,-151.0,0.00026045,7]
[386438969,1758298254430,-735.66,0.00026045,2]
[386438970,1758298254441,-151.0,0.00026045,7]
[386438971,1758298254452,-480.0,0.00026047,2]
[386438972,1758298254462,-480.0,0.00026047,2]
[386438973,1758298254471,-864.0,0.00026049,20]
[386438974,1758298254481,-660.0,0.00026056,2]
[386438975,1758298254490,-762.42,0.00026084,2]
[386438976,1758298254500,-2766.93,0.00026084,2]
[386438977,1758298254509,-150.0,0.00026109,2]
[386438978,1758298254518,-150.0,0.00026137,2]
[386438979,1758298254529,-4614.02,0.00026199,30]
[386438980,1758298254540,-293.721144,0.00026199,7]
[386438981,1758298254550,-151.0,0.00026199,7]
[386438982,1758298254559,-155.960703,0.00026199,7]
[386438983,1758298254571,-151.0,0.00026199,7]
[386438984,1758298254581,-151.0,0.00026199,7]
[386438985,1758298254591,-151.0,0.00026199,7]
[386438986,1758298254600,-151.0,0.00026199,7]
[386438987,1758298254609,-151.0,0.00026199,7]
[386438988,1758298254619,-299.62519,0.00026199,7]
[386438989,1758298254628,-151.0,0.00026199,7]
[386438990,1758298254638,-151.0,0.00026199,7]
[386438991,1758298254648,-151.0,0.00026199,7]
[386438992,1758298254657,-151.0,0.00026228,2]
[386438993,1758298254667,-151.0,0.00026228,2]
[386438994,1758298254676,-500.0,0.00026228,2]